bitfinex-derivatives/quotes_BTCF0:USTF0_20251217
["timestamp","ask_amount","ask_price","bid_price","bid_amount"]
[1765967198066,0.02943,86770.0,86769.0,0.0663185]
[1765967198565,0.02711,86772.0,86771.0,0.0692582]
[1765967199268,0.05624,86772.0,86771.0,0.0692582]
[1765967199966,0.3608,86778.0,86777.0,0.05773]
[1765967200159,0.3608,86778.0,86777.0,0.0692574]
[1765967200765,0.08932935,86783.0,86782.0,0.0692568]
[1765967200966,0.02711,86783.0,86782.0,0.0692568]
[1765967201167,0.06221935,86786.0,86780.0,0.0175]
[1765967201168,0.02711,86786.0,86785.0,0.0867564]
[1765967201367,0.05624,86786.0,86785.0,0.0867564]
[1765967201972,0.0677662,86786.0,86785.0,0.0867564]
[1765967202369,0.0697662,86786.0,86785.0,0.0867564]
[1765967202573,0.0717662,86786.0,86785.0,0.0867564]
[1765967203174,0.004,86786.0,86785.0,0.0867564]
[1765967203365,0.06024,86786.0,86785.0,0.4475564]
[1765967204380,0.004,86786.0,86785.0,0.4475564]
[1765967204960,0.03111,86786.0,86785.0,0.4475564]
[1765967205166,0.06024,86786.0,86785.0,0.4475564]
[1765967206370,0.06006659,86786.0,86785.0,0.4475564]
[1765967206574,0.05395342,86786.0,86785.0,0.45906462]
[1765967207867,0.05395342,86786.0,86785.0,1.00906462]
[1765967210372,0.05395342,86786.0,86785.0,0.9975564]
[1765967210576,0.05395342,86786.0,86785.0,1.00923325]
[1765967210776,0.05395342,86786.0,86785.0,0.9975564]
[1765967217486,0.0115252,86795.0,86794.0,0.0115252]
[1765967218675,0.0145252,86795.0,86794.0,0.0115252]
[1765967220986,0.0115261,86787.0,86786.0,0.00017286]
[1765967221870,0.0115261,86787.0,86786.0,0.37249896]
[1765967222278,0.0115261,86787.0,86786.0,0.37449896]
[1765967223483,0.0115261,86787.0,86786.0,0.37649896]
[1765967224191,0.0115261,86787.0,86786.0,0.36497286]
[1765967224390,0.0115261,86787.0,86786.0,0.36297286]
[1765967224590,0.0115261,86787.0,86786.0,0.36497286]
[1765967225688,0.06204718,86795.0,86793.0,0.0115252]
[1765967225892,0.0115249,86797.0,86796.0,0.0115249]
[1765967227596,0.0115249,86797.0,86796.0,0.0125249]
[1765967230795,0.0115249,86797.0,86796.0,0.0135249]
[1765967233403,0.0707149,86797.0,86796.0,0.0863349]
[1765967234298,0.0707149,86797.0,86796.0,0.0853349]
[1765967234496,0.0707149,86797.0,86796.0,0.0863349]
[1765967234907,0.0707149,86797.0,86796.0,0.0853349]
[1765967235099,0.0707149,86797.0,86796.0,0.0863349]
[1765967235612,0.0707149,86797.0,86796.0,0.0853349]
[1765967236603,0.0707149,86797.0,86796.0,0.0843349]
[1765967236905,0.0707149,86797.0,86796.0,0.0853349]
[1765967237614,0.0707149,86797.0,86796.0,0.0843349]
[1765967241005,0.0707149,86797.0,86796.0,0.0392549]
[1765967241505,0.0707149,86797.0,86786.0,0.00017286]
[1765967241506,0.0857861,86787.0,86786.0,0.00017286]
[1765967241709,0.0857861,86787.0,86770.0,0.14883825]
[1765967241710,0.0707182,86771.0,86770.0,0.14883825]
[1765967241908,0.0707182,86771.0,86770.0,0.02773]
[1765967242103,0.0707182,86771.0,86763.0,0.37834]
[1765967242104,0.0707192,86764.0,86763.0,0.43361]
[1765967242310,0.4315192,86764.0,86763.0,0.05527]
[1765967243094,0.07072,86758.0,86757.0,0.05527]
[1765967243292,0.07072,86758.0,86757.0,0.02773]
[1765967243492,0.05919,86756.0,86755.0,0.00017286]
[1765967243698,0.41999,86756.0,86755.0,0.00017286]
[1765967244603,0.41999,86756.0,86755.0,0.00117286]
[1765967244805,0.41999,86756.0,86755.0,0.00217286]
[1765967245201,0.41999,86756.0,86755.0,0.05744286]
[1765967246614,0.41999,86756.0,86755.0,0.05644286]
[1765967246802,0.41999,86756.0,86755.0,0.05744286]
[1765967247805,0.41999,86756.0,86755.0,0.05644286]
[1765967248011,0.41999,86756.0,86755.0,0.05744286]
[1765967248711,0.41999,86756.0,86755.0,0.05644286]
[1765967248911,0.41999,86756.0,86755.0,0.05744286]
[1765967249902,0.41999,86756.0,86755.0,0.02990286]
[1765967250097,0.43506,86756.0,86755.0,0.00117286]
[1765967250297,0.43506,86756.0,86755.0,0.00217286]
[1765967250709,0.43506,86756.0,86755.0,0.00117286]
[1765967250909,0.43506,86756.0,86755.0,0.00217286]
[1765967251603,0.41999,86756.0,86755.0,0.02990286]
[1765967251809,0.41999,86756.0,86755.0,0.05744286]
[1765967252515,0.05919,86756.0,86755.0,0.05744286]
[1765967253311,0.05919,86756.0,86755.0,0.05644286]
[1765967253498,0.05919,86756.0,86755.0,0.05744286]
[1765967254207,0.05919,86756.0,86755.0,0.05644286]
[1765967254416,0.05919,86756.0,86755.0,0.05744286]
[1765967254909,0.05919,86756.0,86755.0,0.05644286]
[1765967255115,0.05919,86756.0,86755.0,0.05744286]
[1765967256302,0.05919,86756.0,86755.0,0.05644286]
[1765967256608,0.05919,86756.0,86755.0,0.05844286]
[1765967257310,0.05919,86756.0,86755.0,0.05644286]
[1765967257505,0.05919,86756.0,86755.0,0.05744286]
[1765967257707,0.0707202,86756.0,86755.0,0.05744286]
[1765967258004,0.0857902,86756.0,86755.0,0.00217286]
[1765967258214,0.0857902,86756.0,86755.0,0.00317286]
[1765967258515,0.4465902,86756.0,86755.0,0.00317286]
[1765967258710,0.0676222,86741.0,86740.0,0.16879825]
[1765967258917,0.0676222,86741.0,86740.0,0.05769]
[1765967259418,0.0666222,86741.0,86740.0,0.05769]
[1765967259918,0.02702,86741.0,86740.0,0.07441]
[1765967260216,0.0666222,86741.0,86740.0,0.07641]
[1765967260417,0.0666222,86741.0,86740.0,0.05969]
[1765967260615,0.0666222,86741.0,86740.0,0.002]
[1765967260917,0.0676233,86733.0,86732.0,0.00017286]
[1765967261418,0.15794166,86733.0,86732.0,0.00017286]
[1765967261612,0.0676233,86733.0,86732.0,0.00017286]
[1765967262813,0.0676233,86733.0,86732.0,0.00117286]
[1765967263720,0.0676245,86724.0,86723.0,0.05769]
[1765967264319,0.067625,86720.0,86719.0,0.069225]
[1765967264515,0.05609,86720.0,86719.0,0.069225]
[1765967265019,0.05609,86720.0,86719.0,0.430025]
[1765967266319,0.05609,86720.0,86719.0,0.432025]
[1765967267123,0.05626296,86728.0,86727.0,0.0692241]
[1765967268221,0.06779686,86728.0,86727.0,0.0692241]
[1765967268419,0.05626296,86728.0,86727.0,0.0406541]
[1765967268620,0.05626296,86728.0,86727.0,0.0692241]
[1765967268916,0.06779686,86728.0,86727.0,0.0692241]
[1765967269115,0.05626296,86728.0,86727.0,0.0692241]
[1765967269313,0.05626296,86728.0,86727.0,0.0702241]
[1765967269517,0.02819296,86728.0,86727.0,0.0712241]
[1765967269913,0.05626296,86728.0,86727.0,0.0712241]
[1765967270318,0.00017296,86728.0,86727.0,0.0722241]
[1765967271427,0.05626296,86728.0,86727.0,0.0712241]
[1765967272130,0.05626296,86728.0,86727.0,0.0722241]
[1765967272721,0.05626296,86728.0,86727.0,0.0712241]
[1765967273435,0.05626296,86728.0,86727.0,0.0722241]
[1765967274226,0.05626296,86728.0,86727.0,0.0712241]
[1765967275837,0.06779686,86728.0,86727.0,0.0712241]
[1765967276333,0.06779686,86728.0,86727.0,0.0702241]
[1765967276521,0.06779686,86728.0,86727.0,0.0722241]
[1765967276721,0.05626296,86728.0,86727.0,0.0722241]
[1765967277334,0.05626296,86728.0,86727.0,0.0712241]
[1765967278133,0.05626296,86728.0,86727.0,0.0702241]
[1765967278432,0.05626296,86728.0,86727.0,0.0712241]
[1765967281131,0.06779686,86728.0,86727.0,0.0135341]
[1765967281326,0.06779686,86728.0,86727.0,0.0426541]
[1765967281532,0.06779686,86728.0,86727.0,0.0712241]
[1765967282435,0.06779686,86728.0,86727.0,0.05969]
[1765967282625,0.06779686,86728.0,86727.0,0.002]
[1765967284124,0.05609,86719.0,86718.0,0.09356825]
[1765967284319,0.05609,86713.0,86712.0,0.4014561]
[1765967284527,0.05609,86713.0,86712.0,0.4300261]
[1765967285530,0.05609,86713.0,86712.0,0.4320261]
[1765967285929,0.05609,86713.0,86712.0,0.4300261]
[1765967286125,0.05609,86713.0,86712.0,0.4320261]
[1765967286931,0.0676259,86713.0,86712.0,0.4320261]
[1765967287232,0.0676259,86713.0,86712.0,0.0446561]
[1765967287629,0.0676259,86713.0,86712.0,0.03312]
[1765967288032,0.0676259,86713.0,86712.0,0.004]
[1765967288226,0.0676259,86713.0,86712.0,0.003]
[1765967288632,0.0676259,86713.0,86711.0,0.00017296]
[1765967288633,0.07307,86712.0,86711.0,0.00017296]
[1765967288936,0.07107,86712.0,86711.0,0.00017296]
[1765967289736,0.07007,86712.0,86711.0,0.00017296]
[1765967290424,0.07007,86712.0,86711.0,0.00217296]
[1765967290933,0.07007,86712.0,86711.0,0.00317296]
[1765967291432,0.13226021,86712.0,86711.0,0.00317296]
[1765967291836,0.07007,86712.0,86711.0,0.00317296]
[1765967292037,0.13226021,86712.0,86711.0,0.00317296]
[1765967292233,0.07007,86712.0,86711.0,0.00217296]
[1765967292425,0.07007,86712.0,86711.0,0.00017296]
[1765967307251,0.13226021,86712.0,86711.0,0.00017296]
[1765967308339,0.07007,86712.0,86711.0,0.00017296]
[1765967316056,0.0693075,86701.0,86700.0,0.14918061]
[1765967316360,0.0693075,86701.0,86700.0,0.05544]
[1765967316857,0.0687078,86699.0,86698.0,0.00230687]
[1765967317456,0.0677078,86699.0,86698.0,0.05660687]
[1765967317952,0.0667078,86699.0,86698.0,0.05660687]
[1765967318352,0.0667078,86699.0,86698.0,0.05760687]
[1765967318757,0.0667078,86699.0,86698.0,0.05860687]
[1765967320768,0.05517,86699.0,86698.0,0.05860687]
[1765967321059,0.02636,86699.0,86698.0,0.05860687]
[1765967321456,0.02888442,86701.0,86700.0,0.0713]
[1765967321654,0.06224782,86710.0,86706.0,0.0658369]
[1765967321861,0.06224782,86717.0,86706.0,0.0967579]
[1765967322047,0.02833442,86714.0,86706.0,0.0115369]
[1765967322248,0.02833442,86714.0,86704.0,0.017]
[1765967322249,0.06224782,86721.0,86720.0,0.0713]
[1765967322660,0.02917086,86722.0,86721.0,0.0658349]
[1765967322849,0.09060782,86729.0,86728.0,0.0543]
[1765967323047,0.1191132,86729.0,86728.0,0.0543]
[1765967323254,0.08567538,86729.0,86728.0,0.0543]
[1765967323456,0.17708637,86729.0,86728.0,0.0658339]
[1765967323656,0.05717,86729.0,86728.0,0.0658339]
[1765967324056,0.06017,86729.0,86728.0,0.0658339]
[1765967324262,0.06017,86729.0,86728.0,0.0543]
[1765967324654,0.0687049,86721.0,86720.0,0.05447296]
[1765967325858,0.0697049,86721.0,86720.0,0.05447296]
[1765967327057,0.0707049,86721.0,86720.0,0.05447296]
[1765967329461,0.0707049,86721.0,86720.0,0.07147296]
[1765967333667,0.0707049,86721.0,86720.0,0.05447296]
[1765967338265,0.0707049,86721.0,86720.0,0.00017296]
[1765967338471,0.0707049,86721.0,86720.0,0.05447296]
[1765967339771,0.0707049,86721.0,86720.0,0.07147296]
[1765967344275,0.0707049,86721.0,86720.0,0.05447296]
[1765967344475,0.0707049,86721.0,86720.0,0.07187296]
[1765967346275,0.13295272,86721.0,86720.0,0.07187296]
[1765967347279,0.0707049,86721.0,86720.0,0.07187296]
[1765967347778,0.0707049,86721.0,86720.0,0.02839296]
[1765967347980,0.0707049,86721.0,86720.0,0.00017296]
[1765967348379,0.05901,86705.0,86704.0,0.05656]
[1765967350280,0.05901,86705.0,86704.0,0.05756]
[1765967352171,0.12122064,86705.0,86704.0,0.05756]
[1765967353178,0.12122064,86705.0,86704.0,0.05656]
[1765967353382,0.1500944,86705.0,86704.0,0.05856]
[1765967353978,0.1500944,86705.0,86704.0,0.02922]
[1765967354180,0.15007702,86705.0,86704.0,0.03022]
[1765967354382,0.15007702,86705.0,86704.0,0.002]
[1765967354581,0.08788376,86705.0,86704.0,0.001]
[1765967354778,0.15007861,86705.0,86704.0,0.0690971]
[1765967355283,0.08788376,86705.0,86704.0,0.0690971]
[1765967355680,0.08788376,86705.0,86704.0,0.0680971]
[1765967355884,0.08788376,86705.0,86704.0,0.0690971]
[1765967356180,0.08788376,86705.0,86704.0,0.0700971]
[1765967356873,0.08788376,86705.0,86704.0,0.0690971]
[1765967359185,0.08788376,86705.0,86704.0,0.0864971]
[1765967361186,0.0705478,86699.0,86698.0,0.00230687]
[1765967361383,0.0705478,86699.0,86696.0,0.00017296]
[1765967361384,0.0705481,86697.0,86696.0,0.00017296]
[1765967361686,0.0705487,86692.0,86680.0,0.1112004]
[1765967361991,0.0705502,86681.0,86680.0,0.1677604]
[1765967362292,0.0705502,86681.0,86680.0,0.07396]
[1765967362477,0.0695502,86681.0,86680.0,0.07396]
[1765967362880,0.06863248,86681.0,86680.0,0.07396]
[1765967363186,0.06863248,86681.0,86680.0,0.07496]
[1765967363392,0.06863248,86681.0,86680.0,0.001]
[1765967363787,0.09771903,86681.0,86680.0,0.001]
[1765967364596,0.09771903,86681.0,86680.0,0.002]
[1765967364986,0.09771903,86681.0,86680.0,0.03022]
[1765967365295,0.09771903,86681.0,86680.0,0.002]
[1765967366991,0.02943,86673.0,86672.0,0.02839296]
[1765967367195,0.0705513,86673.0,86672.0,0.05673296]
[1765967368797,0.05901,86673.0,86672.0,0.05673296]
[1765967369097,0.0705507,86678.0,86677.0,0.0681007]
[1765967370799,0.0705507,86678.0,86677.0,0.05656]
[1765967371499,0.05901,86678.0,86677.0,0.05656]
[1765967371697,0.06001,86678.0,86677.0,0.05656]
[1765967375698,0.06001,86678.0,86677.0,0.02822]
[1765967375910,0.06001,86678.0,86677.0,0.05639]
[1765967376806,0.0671009,86676.0,86675.0,0.0687909]
[1765967376998,0.0671009,86676.0,86675.0,0.0852309]
[1765967377796,0.0671009,86676.0,86675.0,0.07369]
[1765967378404,0.0671009,86676.0,86675.0,0.085231]
[1765967378803,0.0671009,86676.0,86675.0,0.07369]
[1765967379404,0.0681009,86676.0,86675.0,0.07369]
[1765967381101,0.0671009,86676.0,86675.0,0.07369]
[1765967381898,0.0671009,86676.0,86672.0,0.00017296]
[1765967381899,0.0671013,86673.0,86672.0,0.05742296]
[1765967382901,0.06719383,86673.0,86672.0,0.00017296]
[1765967383501,0.05556,86659.0,86650.0,0.1102404]
[1765967383697,0.06719563,86659.0,86655.0,0.0115437]
[1765967383900,0.06719563,86659.0,86658.0,0.03011794]
[1765967384205,0.06719563,86659.0,86658.0,0.05955794]
[1765967384709,0.15952995,86659.0,86658.0,0.05955794]
[1765967385001,0.03944563,86659.0,86658.0,0.07110124]
[1765967385203,0.02790253,86659.0,86658.0,0.07110124]
[1765967385605,0.05565253,86659.0,86658.0,0.07110124]
[1765967386303,0.02790253,86659.0,86658.0,0.07110124]
[1765967386506,0.05565253,86659.0,86658.0,0.07110124]
[1765967386700,0.09565253,86659.0,86658.0,0.07110124]
[1765967386907,0.09565253,86659.0,86658.0,0.05955794]
[1765967387300,0.09565253,86659.0,86658.0,0.00230794]
[1765967388096,0.05556,86652.0,86651.0,0.38861]
[1765967388300,0.1071041,86652.0,86651.0,0.38861]
[1765967389013,0.05556,86651.0,86650.0,0.00011561]
[1765967389305,0.09556,86651.0,86650.0,0.00011561]
[1765967389511,0.09556,86651.0,86650.0,0.05736561]
[1765967390596,0.09656,86651.0,86650.0,0.05736561]
[1765967391212,0.09756,86651.0,86650.0,0.05736561]
[1765967395012,0.09756,86651.0,86650.0,0.07380561]
[1765967395411,0.042,86651.0,86650.0,0.07380561]
[1765967395801,0.06981,86651.0,86650.0,0.07380561]
[1765967396007,0.09756,86651.0,86650.0,0.07380561]
[1765967396612,0.1091042,86651.0,86650.0,0.07380561]
[1765967397011,0.1091042,86651.0,86650.0,0.05736561]
[1765967397818,0.1091042,86651.0,86635.0,0.3887862]
[1765967397819,0.05556,86636.0,86635.0,0.07369]
[1765967398118,0.05556,86636.0,86625.0,0.37724]
[1765967398119,0.0671066,86633.0,86625.0,0.01644]
[1765967398306,0.1071066,86633.0,86632.0,0.02795228]
[1765967398912,0.1061066,86633.0,86632.0,0.02795228]
[1765967400313,0.20074973,86633.0,86632.0,0.02795228]
[1765967400816,0.22988414,86633.0,86632.0,0.02795228]
[1765967401305,0.22988414,86633.0,86632.0,0.00014228]
[1765967401506,0.0671082,86621.0,86620.0,0.07369]
[1765967401714,0.09556,86621.0,86620.0,0.07369]
[1765967402119,0.06781,86621.0,86620.0,0.07369]
[1765967402420,0.09556,86621.0,86620.0,0.07369]
[1765967402620,0.09570616,86621.0,86620.0,0.07369]
[1765967402823,0.04014616,86621.0,86620.0,0.07369]
[1765967403220,0.00014616,86621.0,86620.0,0.07369]
[1765967403419,0.00014616,86621.0,86620.0,0.07469]
[1765967404309,0.00014616,86621.0,86620.0,0.07569]
[1765967404510,0.12377754,86633.0,86632.0,0.05588]
[1765967404818,0.011546,86638.0,86637.0,0.05588]
[1765967405023,0.04,86638.0,86637.0,0.0674257]
[1765967405416,0.04008865,86638.0,86637.0,0.0674257]
[1765967405725,0.02899313,86641.0,86640.0,0.0849157]
[1765967405726,0.00017307,86641.0,86640.0,0.0849157]
[1765967405913,0.00017307,86641.0,86640.0,0.4457157]
[1765967407614,0.09594601,86651.0,86650.0,0.02766]
[1765967407818,0.1072043,86651.0,86650.0,0.02766]
[1765967408623,0.4680043,86651.0,86650.0,0.02766]
[1765967409024,0.4690043,86651.0,86650.0,0.02766]
[1765967410231,0.4028,86651.0,86650.0,0.05588]
[1765967410413,0.07026,86651.0,86650.0,0.05588]
[1765967410618,0.09766,86651.0,86650.0,0.05588]
[1765967411115,0.09566,86651.0,86650.0,0.05588]
[1765967411316,0.09766,86651.0,86650.0,0.05588]
[1765967411932,0.45746,86651.0,86650.0,0.05588]
[1765967412115,0.45846,86651.0,86650.0,0.05588]
[1765967412522,0.09766,86651.0,86650.0,0.05588]
[1765967414132,0.09566,86651.0,86650.0,0.05588]
[1765967414318,0.09766,86651.0,86650.0,0.05588]
[1765967418427,0.1092042,86651.0,86650.0,0.0674243]
[1765967418731,0.09766,86651.0,86650.0,0.0674243]
[1765967420624,0.042,86651.0,86650.0,0.0674243]
[1765967423928,0.07026,86651.0,86650.0,0.0674243]
[1765967424637,0.06926,86651.0,86650.0,0.0674243]
[1765967424831,0.06826,86651.0,86650.0,0.0674243]
[1765967425527,0.06826,86651.0,86650.0,0.0684243]
[1765967425934,0.09566,86651.0,86650.0,0.0684243]
[1765967426735,0.09566,86651.0,86650.0,0.0694243]
[1765967427330,0.09566,86651.0,86650.0,0.0684243]
[1765967427527,0.05566,86651.0,86650.0,0.0694243]
[1765967427732,0.09566,86651.0,86650.0,0.0694243]
[1765967428131,0.09566,86651.0,86650.0,0.0674243]
[1765967428835,0.09566,86651.0,86650.0,0.05588]
[1765967429226,0.05566,86651.0,86650.0,0.05588]
[1765967429426,0.09566,86651.0,86650.0,0.05588]
[1765967430438,0.05566,86656.0,86655.0,0.0674237]
[1765967430732,0.09566,86656.0,86655.0,0.0674237]
[1765967431033,0.00017317,86659.0,86658.0,0.0849133]
[1765967431238,0.04017317,86659.0,86658.0,0.0849133]
[1765967431438,0.09583317,86659.0,86658.0,0.0849133]
[1765967434535,0.05583317,86659.0,86658.0,0.0849133]
[1765967434839,0.09874317,86659.0,86658.0,0.0849133]
[1765967435038,0.09874317,86659.0,86658.0,0.0674233]
[1765967435436,0.05857,86656.0,86655.0,0.39026]
[1765967435635,0.09857,86656.0,86655.0,0.39026]
[1765967435838,0.1607464,86656.0,86655.0,0.02946]
[1765967436140,0.05857,86647.0,86646.0,0.07679]
[1765967436340,0.09857,86647.0,86646.0,0.0883349]
[1765967436932,0.09757,86647.0,86646.0,0.0883349]
[1765967437136,0.04,86647.0,86646.0,0.0883349]
[1765967437332,0.06230524,86655.0,86654.0,0.05634]
[1765967437542,0.11717524,86656.0,86655.0,0.0678837]
[1765967437738,0.15717524,86656.0,86655.0,0.05634]
[1765967437932,0.05487,86647.0,86646.0,0.0853748]
[1765967438140,0.09487,86647.0,86646.0,0.0853748]
[1765967440634,0.06726,86647.0,86646.0,0.0853748]
[1765967441034,0.09487,86647.0,86646.0,0.0853748]
[1765967441439,0.11717391,86651.0,86650.0,0.0678843]
[1765967441646,0.15717391,86651.0,86650.0,0.05634]
[1765967442146,0.09487,86651.0,86650.0,0.02886]
[1765967442341,0.1571795,86651.0,86650.0,0.02886]
[1765967442737,0.1571795,86651.0,86650.0,0.05634]
[1765967443545,0.1171795,86651.0,86650.0,0.05634]
[1765967443845,0.09487,86651.0,86650.0,0.05634]
[1765967445147,0.1571795,86651.0,86650.0,0.05634]
[1765967445542,0.09487,86651.0,86650.0,0.0678843]
[1765967448641,0.05487,86651.0,86650.0,0.0678843]
[1765967448847,0.09487,86651.0,86650.0,0.0678843]
[1765967450250,0.05487,86651.0,86650.0,0.0678843]
[1765967450447,0.05487,86654.0,86653.0,0.0678839]
[1765967453357,0.05487,86654.0,86653.0,0.0115439]
[1765967453545,0.05487,86647.0,86646.0,0.07383]
[1765967453746,0.05487,86647.0,86646.0,0.0853749]
[1765967455269,0.05487,86647.0,86646.0,0.05734]
[1765967455559,0.05487,86647.0,86646.0,0.002]
[1765967456347,0.13794252,86647.0,86646.0,0.001]
[1765967456655,0.05487,86643.0,86635.0,0.3608]
[1765967457157,0.0664153,86643.0,86635.0,0.3608]
[1765967458859,0.0664153,86643.0,86630.0,0.09385232]
[1765967459162,0.0664153,86643.0,86628.0,0.01793]
[1765967459163,0.08222087,86654.0,86646.0,0.13333]
[1765967459347,0.07846006,86696.0,86695.0,0.02886]
[1765967459552,0.0826382,86696.0,86695.0,0.02886]
[1765967460058,0.34402644,86696.0,86695.0,0.0403983]
[1765967460248,0.34402644,86696.0,86695.0,0.7619983]
[1765967460650,0.34402644,86696.0,86695.0,0.7331383]
[1765967460846,0.34602644,86696.0,86695.0,0.7216]
[1765967461546,0.34802644,86696.0,86695.0,0.7216]
[1765967462054,0.34602644,86696.0,86695.0,0.7216]
[1765967462259,0.34802644,86696.0,86695.0,0.7216]
[1765967464459,0.34802644,86696.0,86695.0,0.3608]
[1765967464648,0.34602644,86696.0,86695.0,0.3608]
[1765967464854,0.34802644,86696.0,86695.0,0.3608]
[1765967469460,1.07382644,86696.0,86695.0,0.3608]
[1765967470282,1.07282644,86696.0,86695.0,0.3608]
[1765967470969,0.2269193,86688.0,86687.0,0.21734307]
[1765967471359,0.49984574,86688.0,86687.0,0.21734307]
[1765967471874,0.56752574,86688.0,86687.0,0.00017307]
[1765967472563,0.56852574,86688.0,86687.0,0.00017307]
[1765967473165,0.56952574,86688.0,86687.0,0.00017307]
[1765967473363,0.56952574,86688.0,86678.0,0.46628621]
[1765967473364,0.2269205,86679.0,86678.0,0.46628621]
[1765967473562,0.9525605,86679.0,86678.0,0.33553176]
[1765967473760,1.22548694,86679.0,86678.0,0.33553176]
[1765967474867,1.22648694,86679.0,86678.0,0.33553176]
[1765967475877,1.22748694,86679.0,86678.0,0.33553176]
[1765967480073,1.21594644,86679.0,86678.0,0.33553176]
[1765967481770,1.21594644,86679.0,86666.0,0.21717]
[1765967481771,0.2269221,86667.0,86666.0,0.21717]
[1765967481976,1.3131221,86667.0,86666.0,0.19073332]
[1765967483261,0.0115429,86661.0,86660.0,0.05403]
[1765967483464,0.0115435,86656.0,86655.0,0.21726812]
[1765967483673,1.0977435,86656.0,86655.0,0.21726812]
[1765967484270,1.4977435,86656.0,86655.0,0.21726812]
[1765967484472,1.63045657,86656.0,86655.0,0.21726812]
[1765967485176,1.63045657,86656.0,86655.0,0.21826812]
[1765967486476,1.63445657,86656.0,86655.0,0.21826812]
[1765967486781,1.63845657,86656.0,86655.0,0.21726812]
[1765967487480,0.0115466,86634.0,86630.0,0.15493134]
[1765967487681,0.72544,86633.0,86628.0,0.0115472]
[1765967487879,0.72544,86633.0,86624.0,0.16647904]
[1765967488079,0.011547,86630.0,86624.0,0.16647904]
[1765967488380,0.011547,86630.0,86623.0,0.0115478]
[1765967488582,9.812e-05,86629.0,86623.0,0.0115478]
[1765967488778,0.0115473,86628.0,86623.0,0.0115478]
[1765967489781,9.812e-05,86629.0,86622.0,0.011548]
[1765967490285,9.812e-05,86629.0,86619.0,0.0115484]
[1765967490478,0.011548,86623.0,86619.0,0.16647974]
[1765967490680,0.7254,86622.0,86619.0,0.0115484]
[1765967491176,0.7369481,86622.0,86615.0,0.0115489]
[1765967491376,0.7369481,86622.0,86617.0,0.0115486]
[1765967491586,0.7254,86622.0,86619.0,0.0125485]
[1765967491775,0.0115482,86621.0,86619.0,0.001]
[1765967491972,0.72168517,86620.0,86619.0,0.001]
[1765967492869,0.73305607,86620.0,86619.0,0.002]
[1765967493278,0.73305607,86620.0,86585.0,0.3608]
[1765967493584,0.73305607,86620.0,86580.0,0.15493134]
[1765967493585,0.0115532,86584.0,86580.0,0.15493134]
[1765967493778,0.0115532,86584.0,86576.0,0.0115541]
[1765967493779,0.53208732,86583.0,86576.0,0.0115541]
[1765967494278,0.53208732,86583.0,86572.0,0.3723546]
[1765967494478,0.0115534,86582.0,86572.0,0.3723546]
[1765967494682,0.0105534,86582.0,86572.0,0.3723546]
[1765967495179,0.0105534,86582.0,86570.0,0.15493134]
[1765967495180,0.3608,86580.0,86570.0,0.15493134]
[1765967495379,0.0115538,86579.0,86578.0,0.00639167]
[1765967495883,0.72576,86579.0,86578.0,0.00639167]
[1765967496480,0.72576,86579.0,86578.0,0.00739167]
[1765967497487,0.72576,86579.0,86578.0,0.00439167]
[1765967500786,0.3558,86580.0,86579.0,0.0115538]
[1765967501187,0.73384,86580.0,86579.0,0.0115538]
[1765967502287,1.0816,86580.0,86579.0,0.0115538]
[1765967503291,1.0816,86580.0,86579.0,0.0125538]
[1765967504396,1.0816,86580.0,86579.0,0.001]
[1765967505378,1.36471,86580.0,86579.0,0.001]
[1765967507898,0.2947438,86579.0,86578.0,0.00239167]
[1765967508782,0.2947438,86579.0,86578.0,1.67e-06]
[1765967510188,0.2957438,86579.0,86578.0,1.67e-06]
[1765967510385,0.2967438,86579.0,86578.0,1.67e-06]
[1765967513590,0.30835253,86579.0,86578.0,1.67e-06]
[1765967513887,0.8341285,86579.0,86578.0,1.67e-06]
[1765967514096,0.28319,86551.0,86550.0,0.0115577]
[1765967514294,1.00896322,86551.0,86550.0,0.0115577]
[1765967515784,1.00896322,86551.0,86550.0,0.1391877]
[1765967516301,1.00896322,86551.0,86550.0,0.29688408]
[1765967516498,0.28319,86547.0,86546.0,0.1852081]
[1765967516699,0.28319,86547.0,86546.0,0.21660699]
[1765967517199,0.28319,86547.0,86546.0,0.34157699]
[1765967519498,0.28319,86547.0,86546.0,0.34257699]
[1765967520710,9.322e-05,86551.0,86550.0,0.23809]
[1765967521001,0.00017328,86559.0,86558.0,0.23809]
[1765967521301,0.00017328,86559.0,86558.0,0.63028889]
[1765967521505,0.00017328,86559.0,86558.0,1.03028889]
[1765967521889,0.64399,86572.0,86571.0,0.2470449]
[1765967522094,0.98824483,86572.0,86571.0,0.27844379]
[1765967522819,1.27143483,86572.0,86571.0,0.26688889]
[1765967523008,0.98824483,86572.0,86571.0,0.26688889]
[1765967523305,8.483e-05,86572.0,86571.0,0.26688889]
[1765967523491,0.00308483,86572.0,86571.0,0.26688889]
[1765967523889,8.483e-05,86572.0,86571.0,0.66688889]
[1765967524194,8.483e-05,86572.0,86571.0,0.66788889]
[1765967525005,0.26028483,86572.0,86571.0,0.26788889]
[1765967525506,0.26028483,86572.0,86571.0,0.32994691]
[1765967525804,8.483e-05,86572.0,86571.0,0.26788889]
[1765967526002,8.483e-05,86572.0,86571.0,0.66788889]
[1765967526208,8.483e-05,86572.0,86571.0,0.66688889]
[1765967527399,0.3608,86596.0,86595.0,0.2317517]
[1765967527600,0.09073214,86602.0,86601.0,0.2317509]
[1765967527805,0.09073214,86602.0,86601.0,0.26314979]
[1765967527806,0.13281,86602.0,86601.0,0.26314979]
[1765967528006,0.2602,86602.0,86601.0,0.26314979]
[1765967528508,0.2602,86602.0,86601.0,0.25159889]
[1765967529299,0.2602,86602.0,86601.0,0.2212]
[1765967529810,0.2602,86602.0,86601.0,0.2202]
[1765967530108,0.13681,86602.0,86601.0,0.2516485]
[1765967530317,0.13681,86602.0,86601.0,0.2202]
[1765967530494,0.13681,86602.0,86601.0,0.25163785]
[1765967530695,0.00017328,86610.0,86609.0,0.2241598]
[1765967530999,0.00017328,86610.0,86609.0,0.61639765]
[1765967531404,0.00017328,86610.0,86609.0,0.64733085]
[1765967531906,0.13298328,86610.0,86609.0,0.64733085]
[1765967532301,0.13298328,86610.0,86609.0,0.61639765]
[1765967532509,0.00017328,86610.0,86609.0,0.61639765]
[1765967532710,0.00117328,86610.0,86609.0,0.61639765]
[1765967533109,0.00217328,86610.0,86609.0,0.61639765]
[1765967533410,0.002309,86618.0,86617.0,0.2190787]
[1765967533610,0.002309,86618.0,86617.0,0.61131655]
[1765967534001,0.34169,86632.0,86631.0,0.2167469]
[1765967534205,0.34169,86648.0,86647.0,0.2052]
[1765967536317,0.34369,86648.0,86647.0,0.2052]
[1765967536810,0.08349,86648.0,86647.0,0.2052]